[Event "Titled Tuesday Blitz February 07 Late 2023"]
[White "Cardoso Cardoso, Jose Gabriel"]
[Black "Kavutskiy, Konstantin"]
[WhiteFideId "4430492"]
[BlackFideId "2026384"]
[WhiteElo "2492"]
[BlackElo "2414"]
[Result "1-0"]
[Round "09"]
[TimeControl "180+2"]
[Date "2023.02.07"]
[WhiteClock "0:01:59"]
[BlackClock "0:00:58"]

1. c4 {[%clk 0:03:00]}  g6 {[%clk 0:02:59]} 2. Nc3 {[%clk 0:03:01]}  Bg7 {[%clk 0:02:58]} 3. g3 {[%clk 0:03:01]}  c5 {[%clk 0:02:58]} 4. Bg2 {[%clk 0:03:01]}  Nc6 {[%clk 0:02:57]} 5. d3 {[%clk 0:03:02]}  d6 {[%clk 0:02:55]} 6. e3 {[%clk 0:03:02]}  e5 {[%clk 0:02:54]} 7. Nge2 {[%clk 0:03:02]}  Nge7 {[%clk 0:02:54]} 8. Rb1 {[%clk 0:02:59]}  h5 {[%clk 0:02:53]} 9. h3 {[%clk 0:02:59]}  b6 {[%clk 0:02:48]} 10. Qd2 {[%clk 0:02:53]}  Bb7 {[%clk 0:02:46]} 11. O-O {[%clk 0:02:52]}  h4 {[%clk 0:02:45]} 12. g4 {[%clk 0:02:52]}  f5 {[%clk 0:02:45]} 13. g5 {[%clk 0:02:51]}  Qd7 {[%clk 0:02:21]} 14. b3 {[%clk 0:02:48]}  Nb4 {[%clk 0:02:16]} 15. a3 {[%clk 0:02:43]}  Bxg2 {[%clk 0:02:16]} 16. Kxg2 {[%clk 0:02:44]}  Qb7+ {[%clk 0:02:15]} 17. f3 {[%clk 0:02:42]}  Nbc6 {[%clk 0:02:13]} 18. Nd5 {[%clk 0:02:39]}  Nxd5 {[%clk 0:02:07]} 19. cxd5 {[%clk 0:02:40]}  Nd8 {[%clk 0:02:05]} 20. e4 {[%clk 0:02:39]}  f4 {[%clk 0:02:05]} 21. Rg1 {[%clk 0:02:36]}  Nf7 {[%clk 0:02:04]} 22. Kf2 {[%clk 0:02:29]}  Rh5 {[%clk 0:02:04]} 23. Bb2 {[%clk 0:02:22]}  Nxg5 {[%clk 0:02:03]} 24. Rh1 {[%clk 0:02:22]}  Qd7 {[%clk 0:02:02]} 25. Kg2 {[%clk 0:02:18]}  Nh7 {[%clk 0:01:56]} 26. Rbg1 {[%clk 0:02:16]}  Kf7 {[%clk 0:01:49]} 27. Kf2 {[%clk 0:02:13]}  Bf6 {[%clk 0:01:43]} 28. Rg4 {[%clk 0:02:11]}  Ng5 {[%clk 0:01:40]} 29. Nxf4 {[%clk 0:02:04]}  Rh6 {[%clk 0:01:06]} 30. Ne6 {[%clk 0:01:59]}  Qe7 {[%clk 0:00:59]} 31. Nxg5+ {[%clk 0:01:58]}  Bxg5 {[%clk 0:00:58]} 32. Qxg5 {[%clk 0:01:59]} 1-0


[Site "https://www.chess.com"]

[Event "Titled Tuesday Blitz February 07 Late 2023"]
[White "UnknownMagician"]
[Black "Bilan, Danila"]
[BlackFideId "24161918"]
[WhiteElo "2696"]
[BlackElo "2303"]
[Result "0-1"]
[Round "09"]
[TimeControl "180+2"]
[Date "2023.02.07"]
[WhiteClock "0:01:31"]
[BlackClock "0:00:55"]

1. Nf3 {[%clk 0:02:15]}  d5 {[%clk 0:02:58]} 2. e3 {[%clk 0:02:14]}  Nf6 {[%clk 0:02:58]} 3. c4 {[%clk 0:02:15]}  c6 {[%clk 0:02:58]} 4. b3 {[%clk 0:02:14]}  Bf5 {[%clk 0:02:58]} 5. Bb2 {[%clk 0:02:15]}  e6 {[%clk 0:02:59]} 6. Nc3 {[%clk 0:02:15]}  h6 {[%clk 0:02:59]} 7. d4 {[%clk 0:02:15]}  Nbd7 {[%clk 0:02:57]} 8. Bd3 {[%clk 0:02:15]}  g6 {[%clk 0:02:41]} 9. O-O {[%clk 0:02:13]}  Bd6 {[%clk 0:02:39]} 10. Re1 {[%clk 0:02:13]}  O-O {[%clk 0:02:18]} 11. Rc1 {[%clk 0:02:12]}  Ne4 {[%clk 0:01:52]} 12. Bxe4 {[%clk 0:02:10]}  dxe4 {[%clk 0:01:52]} 13. Nd2 {[%clk 0:02:10]}  Nf6 {[%clk 0:01:48]} 14. h3 {[%clk 0:02:05]}  e5 {[%clk 0:01:27]} 15. d5 {[%clk 0:01:57]}  g5 {[%clk 0:01:04]} 16. Qc2 {[%clk 0:01:47]}  g4 {[%clk 0:01:03]} 17. h4 {[%clk 0:01:41]}  cxd5 {[%clk 0:00:59]} 18. Nxd5 {[%clk 0:01:35]}  Nxd5 {[%clk 0:00:58]} 19. cxd5 {[%clk 0:01:35]}  Qxh4 {[%clk 0:00:58]} 20. Nxe4 {[%clk 0:01:34]}  g3 {[%clk 0:00:56]} 21. fxg3 {[%clk 0:01:31]}  Qxe4 {[%clk 0:00:55]} 0-1


[Site "https://www.chess.com"]

[Event "Titled Tuesday Blitz February 07 Late 2023"]
[White "Fernandez Garcia, Gumersindo"]
[Black "Kalogeris, Ioannis"]
[WhiteFideId "24516740"]
[BlackFideId "4239563"]
[WhiteElo "2160"]
[BlackElo "2423"]
[Result "0-1"]
[Round "09"]
[TimeControl "180+2"]
[Date "2023.02.07"]
[WhiteClock "0:00:05"]
[BlackClock "0:00:16"]

1. d4 {[%clk 0:03:00]}  d5 {[%clk 0:02:58]} 2. c4 {[%clk 0:03:00]}  c6 {[%clk 0:02:58]} 3. Nc3 {[%clk 0:02:59]}  Nf6 {[%clk 0:02:57]} 4. Nf3 {[%clk 0:02:59]}  dxc4 {[%clk 0:02:53]} 5. e4 {[%clk 0:03:00]}  b5 {[%clk 0:02:52]} 6. Be2 {[%clk 0:03:00]}  b4 {[%clk 0:02:47]} 7. e5 {[%clk 0:02:52]}  bxc3 {[%clk 0:02:43]} 8. exf6 {[%clk 0:02:51]}  cxb2 {[%clk 0:02:21]} 9. fxg7 {[%clk 0:02:50]}  Bxg7 {[%clk 0:02:09]} 10. Bxb2 {[%clk 0:02:48]}  Qa5+ {[%clk 0:02:07]} 11. Qd2 {[%clk 0:02:42]}  Qxd2+ {[%clk 0:02:03]} 12. Nxd2 {[%clk 0:02:40]}  O-O {[%clk 0:01:49]} 13. Nxc4 {[%clk 0:02:39]}  Rd8 {[%clk 0:01:44]} 14. Rd1 {[%clk 0:02:38]}  Be6 {[%clk 0:01:41]} 15. O-O {[%clk 0:02:36]}  Nd7 {[%clk 0:01:41]} 16. Ba3 {[%clk 0:02:28]}  Nb6 {[%clk 0:01:37]} 17. Ne5 {[%clk 0:02:13]}  Bxe5 {[%clk 0:01:33]} 18. dxe5 {[%clk 0:02:13]}  Kf8 {[%clk 0:01:32]} 19. Bd3 {[%clk 0:02:08]}  Bxa2 {[%clk 0:01:30]} 20. Bxh7 {[%clk 0:02:07]}  Nc4 {[%clk 0:01:23]} 21. Ra1 {[%clk 0:01:49]}  Bb3 {[%clk 0:01:16]} 22. Bc5 {[%clk 0:01:49]}  a5 {[%clk 0:01:16]} 23. e6 {[%clk 0:01:45]}  Nd2 {[%clk 0:01:06]} 24. Rfe1 {[%clk 0:01:30]}  Bxe6 {[%clk 0:01:05]} 25. Bb6 {[%clk 0:01:27]}  Rdb8 {[%clk 0:00:56]} 26. Bxa5 {[%clk 0:01:26]}  Nb3 {[%clk 0:00:56]} 27. Bc7 {[%clk 0:01:20]}  Rxa1 {[%clk 0:00:41]} 28. Rxa1 {[%clk 0:01:19]}  Rb7 {[%clk 0:00:40]} 29. Be5 {[%clk 0:00:21]}  Nxa1 {[%clk 0:00:39]} 30. Bxa1 {[%clk 0:00:22]}  c5 {[%clk 0:00:40]} 31. h4 {[%clk 0:00:20]}  f5 {[%clk 0:00:37]} 32. Be5 {[%clk 0:00:19]}  c4 {[%clk 0:00:37]} 33. h5 {[%clk 0:00:19]}  Rb3 {[%clk 0:00:36]} 34. g4 {[%clk 0:00:19]}  c3 {[%clk 0:00:31]} 35. gxf5 {[%clk 0:00:12]}  c2 {[%clk 0:00:31]} 36. Bf4 {[%clk 0:00:12]}  Bg8 {[%clk 0:00:28]} 37. Bg6 {[%clk 0:00:11]}  Rb1+ {[%clk 0:00:24]} 38. Kh2 {[%clk 0:00:11]}  c1=Q {[%clk 0:00:21]} 39. Bxc1 {[%clk 0:00:12]}  Rxc1 {[%clk 0:00:22]} 40. h6 {[%clk 0:00:12]}  Bd5 {[%clk 0:00:22]} 41. Kg3 {[%clk 0:00:11]}  Rh1 {[%clk 0:00:22]} 42. h7 {[%clk 0:00:10]}  Kg7 {[%clk 0:00:22]} 43. Kf4 {[%clk 0:00:11]}  Bf7 {[%clk 0:00:21]} 44. Kg5 {[%clk 0:00:08]}  Bxg6 {[%clk 0:00:20]} 45. fxg6 {[%clk 0:00:09]}  Rg1+ {[%clk 0:00:18]} 46. Kh5 {[%clk 0:00:10]}  e5 {[%clk 0:00:16]} 47. f3 {[%clk 0:00:09]}  Rg2 {[%clk 0:00:16]} 48. h8=Q+ {[%clk 0:00:04]}  Kxh8 {[%clk 0:00:16]} 49. Kh6 {[%clk 0:00:05]}  Kg8 {[%clk 0:00:16]} 50. Kh5 {[%clk 0:00:05]}  Kg7 {[%clk 0:00:16]} 0-1


[Site "https://www.chess.com"]

[Event "Titled Tuesday Blitz February 07 Late 2023"]
[White "Rottenwohrer Suarez, Juan"]
[Black "Godzwon, Iwo"]
[WhiteFideId "32068182"]
[BlackFideId "21802483"]
[WhiteElo "2265"]
[BlackElo "2394"]
[Result "0-1"]
[Round "09"]
[TimeControl "180+2"]
[Date "2023.02.07"]
[WhiteClock "0:00:01"]
[BlackClock "0:01:02"]

1. Nf3 {[%clk 0:03:00]}  c5 {[%clk 0:02:56]} 2. g3 {[%clk 0:03:01]}  g6 {[%clk 0:02:56]} 3. Bg2 {[%clk 0:03:02]}  Bg7 {[%clk 0:02:57]} 4. O-O {[%clk 0:03:02]}  Nc6 {[%clk 0:02:57]} 5. c4 {[%clk 0:03:03]}  e6 {[%clk 0:02:56]} 6. Nc3 {[%clk 0:03:02]}  Nge7 {[%clk 0:02:57]} 7. a3 {[%clk 0:03:02]}  O-O {[%clk 0:02:57]} 8. b4 {[%clk 0:03:01]}  d6 {[%clk 0:02:54]} 9. bxc5 {[%clk 0:02:14]}  dxc5 {[%clk 0:02:53]} 10. Qc2 {[%clk 0:02:15]}  b6 {[%clk 0:02:53]} 11. d3 {[%clk 0:02:12]}  Bb7 {[%clk 0:02:54]} 12. Bb2 {[%clk 0:02:11]}  Rc8 {[%clk 0:02:54]} 13. a4 {[%clk 0:02:11]}  Nf5 {[%clk 0:02:53]} 14. Ne4 {[%clk 0:02:00]}  Nb4 {[%clk 0:02:42]} 15. Qb3 {[%clk 0:01:54]}  Bxb2 {[%clk 0:02:41]} 16. Qxb2 {[%clk 0:01:50]}  Bxe4 {[%clk 0:02:41]} 17. dxe4 {[%clk 0:01:51]}  Nd4 {[%clk 0:02:42]} 18. Nxd4 {[%clk 0:01:46]}  Qxd4 {[%clk 0:02:43]} 19. Qxd4 {[%clk 0:01:34]}  cxd4 {[%clk 0:02:44]} 20. Rfc1 {[%clk 0:01:34]}  Rc5 {[%clk 0:02:41]} 21. Rab1 {[%clk 0:01:24]}  a5 {[%clk 0:02:40]} 22. Rd1 {[%clk 0:01:04]}  Rxc4 {[%clk 0:02:38]} 23. e5 {[%clk 0:01:05]}  Rfc8 {[%clk 0:02:35]} 24. f4 {[%clk 0:01:03]}  Rd8 {[%clk 0:02:24]} 25. Rd2 {[%clk 0:01:03]}  Rc3 {[%clk 0:02:21]} 26. Rbd1 {[%clk 0:01:00]}  d3 {[%clk 0:02:18]} 27. Be4 {[%clk 0:00:50]}  Ra3 {[%clk 0:02:15]} 28. exd3 {[%clk 0:00:47]}  Rxa4 {[%clk 0:02:12]} 29. d4 {[%clk 0:00:26]}  Nd5 {[%clk 0:02:06]} 30. Rb2 {[%clk 0:00:21]}  Nc3 {[%clk 0:02:06]} 31. Re1 {[%clk 0:00:18]}  Rdxd4 {[%clk 0:02:06]} 32. Bf3 {[%clk 0:00:15]}  Rab4 {[%clk 0:02:06]} 33. Rc2 {[%clk 0:00:09]}  Nd5 {[%clk 0:02:05]} 34. Rc8+ {[%clk 0:00:09]}  Kg7 {[%clk 0:02:05]} 35. Rec1 {[%clk 0:00:08]}  a4 {[%clk 0:02:00]} 36. Ra8 {[%clk 0:00:08]}  Rdc4 {[%clk 0:02:00]} 37. Rd1 {[%clk 0:00:08]}  Rd4 {[%clk 0:01:49]} 38. Rc1 {[%clk 0:00:08]}  Rbc4 {[%clk 0:01:30]} 39. Rb1 {[%clk 0:00:08]}  Rc3 {[%clk 0:01:19]} 40. Bxd5 {[%clk 0:00:06]}  exd5 {[%clk 0:01:19]} 41. Rb8 {[%clk 0:00:05]}  a3 {[%clk 0:01:12]} 42. Rb7 {[%clk 0:00:05]}  a2 {[%clk 0:01:11]} 43. Ra1 {[%clk 0:00:05]}  Rd2 {[%clk 0:01:07]} 44. e6 {[%clk 0:00:05]}  Rb3 {[%clk 0:01:05]} 45. Rxf7+ {[%clk 0:00:02]}  Kg8 {[%clk 0:01:05]} 46. Rc1 {[%clk 0:00:01]}  Rb1 {[%clk 0:01:04]} 47. Rc7 {[%clk 0:00:01]}  a1=Q {[%clk 0:01:02]} 48. Rc8+ {[%clk 0:00:02]}  Kg7 {[%clk 0:01:02]} 49. Rc7+ {[%clk 0:00:02]}  Kf6 {[%clk 0:01:03]} 50. e7 {[%clk 0:00:01]}  Rxc1+ {[%clk 0:01:02]} 0-1


[Site "https://www.chess.com"]

[Event "Titled Tuesday Blitz February 07 Late 2023"]
[White "Remolar Gallen, Jose"]
[Black "Martinez Ramirez, Lennis"]
[WhiteFideId "2215187"]
[BlackFideId "3509079"]
[WhiteElo "2285"]
[BlackElo "2426"]
[Result "0-1"]
[Round "09"]
[TimeControl "180+2"]
[Date "2023.02.07"]
[WhiteClock "0:00:01"]
[BlackClock "0:01:06"]

1. e4 {[%clk 0:03:00]}  c5 {[%clk 0:02:58]} 2. Nf3 {[%clk 0:03:01]}  d6 {[%clk 0:02:58]} 3. d4 {[%clk 0:03:01]}  cxd4 {[%clk 0:02:59]} 4. Nxd4 {[%clk 0:03:02]}  Nf6 {[%clk 0:02:59]} 5. Nc3 {[%clk 0:03:02]}  a6 {[%clk 0:03:00]} 6. Bg5 {[%clk 0:03:02]}  e6 {[%clk 0:02:58]} 7. f4 {[%clk 0:03:02]}  Be7 {[%clk 0:02:59]} 8. Qf3 {[%clk 0:03:02]}  Qc7 {[%clk 0:02:51]} 9. O-O-O {[%clk 0:03:00]}  Nbd7 {[%clk 0:02:48]} 10. g4 {[%clk 0:03:00]}  h6 {[%clk 0:02:48]} 11. Bxf6 {[%clk 0:02:52]}  Bxf6 {[%clk 0:02:49]} 12. h4 {[%clk 0:02:49]}  Nb6 {[%clk 0:02:42]} 13. g5 {[%clk 0:02:36]}  Bxd4 {[%clk 0:02:41]} 14. Rxd4 {[%clk 0:02:37]}  e5 {[%clk 0:02:41]} 15. Rd2 {[%clk 0:02:28]}  Bd7 {[%clk 0:02:27]} 16. f5 {[%clk 0:01:58]}  hxg5 {[%clk 0:02:22]} 17. hxg5 {[%clk 0:01:57]}  O-O-O {[%clk 0:02:23]} 18. Be2 {[%clk 0:01:28]}  Bc6 {[%clk 0:02:22]} 19. Rhd1 {[%clk 0:01:16]}  Kb8 {[%clk 0:02:21]} 20. b3 {[%clk 0:01:10]}  Rh4 {[%clk 0:02:20]} 21. Kb2 {[%clk 0:01:08]}  Rf4 {[%clk 0:02:19]} 22. Qg2 {[%clk 0:01:08]}  Rxf5 {[%clk 0:02:16]} 23. Rf1 {[%clk 0:00:39]}  Rf4 {[%clk 0:02:02]} 24. a4 {[%clk 0:00:35]}  d5 {[%clk 0:01:59]} 25. a5 {[%clk 0:00:29]}  d4 {[%clk 0:01:59]} 26. Na2 {[%clk 0:00:07]}  Nc8 {[%clk 0:01:45]} 27. Rxf4 {[%clk 0:00:07]}  exf4 {[%clk 0:01:46]} 28. Qf3 {[%clk 0:00:02]}  Qe5 {[%clk 0:01:45]} 29. Bd3 {[%clk 0:00:03]}  Qxg5 {[%clk 0:01:43]} 30. Rf2 {[%clk 0:00:02]}  Nd6 {[%clk 0:01:34]} 31. Qxf4 {[%clk 0:00:03]}  Qxf4 {[%clk 0:01:34]} 32. Rxf4 {[%clk 0:00:04]}  Re8 {[%clk 0:01:34]} 33. Rg4 {[%clk 0:00:01]}  g6 {[%clk 0:01:31]} 34. e5 {[%clk 0:00:02]}  Rxe5 {[%clk 0:01:31]} 35. Rxd4 {[%clk 0:00:02]}  Rd5 {[%clk 0:01:28]} 36. Rf4 {[%clk 0:00:02]}  Rxa5 {[%clk 0:01:27]} 37. Nb4 {[%clk 0:00:02]}  Kc7 {[%clk 0:01:15]} 38. c4 {[%clk 0:00:01]}  Rh5 {[%clk 0:01:13]} 39. Rf6 {[%clk 0:00:01]}  a5 {[%clk 0:01:10]} 40. Nc2 {[%clk 0:00:01]}  Bd7 {[%clk 0:01:06]} 41. c5 {[%clk 0:00:01]}  Rxc5 {[%clk 0:01:06]} 0-1


[Site "https://www.chess.com"]

[Event "Titled Tuesday Blitz February 07 Late 2023"]
[White "Rosen, Eric"]
[Black "Carrasco Miranda, Andres"]
[WhiteFideId "2032562"]
[BlackFideId "3405990"]
[WhiteElo "2349"]
[BlackElo "2240"]
[Result "1-0"]
[Round "09"]
[TimeControl "180+2"]
[Date "2023.02.07"]
[WhiteClock "0:01:49"]
[BlackClock "0:01:39"]

1. e4 {[%clk 0:03:00]}  c5 {[%clk 0:02:59]} 2. Nc3 {[%clk 0:02:59]}  d6 {[%clk 0:02:59]} 3. d4 {[%clk 0:02:59]}  cxd4 {[%clk 0:02:59]} 4. Qxd4 {[%clk 0:02:59]}  Nc6 {[%clk 0:02:59]} 5. Qd2 {[%clk 0:03:00]}  g6 {[%clk 0:02:59]} 6. b3 {[%clk 0:03:00]}  Bh6 {[%clk 0:03:00]} 7. f4 {[%clk 0:03:00]}  Nf6 {[%clk 0:03:00]} 8. Bb2 {[%clk 0:02:58]}  e5 {[%clk 0:03:00]} 9. g3 {[%clk 0:02:50]}  O-O {[%clk 0:03:00]} 10. O-O-O {[%clk 0:02:51]}  Bg4 {[%clk 0:03:00]} 11. Be2 {[%clk 0:02:44]}  Rc8 {[%clk 0:02:58]} 12. h3 {[%clk 0:02:38]}  Bxe2 {[%clk 0:02:56]} 13. Ngxe2 {[%clk 0:02:39]}  Qa5 {[%clk 0:02:49]} 14. Kb1 {[%clk 0:02:36]}  Rfd8 {[%clk 0:02:42]} 15. Rhf1 {[%clk 0:02:19]}  Nh5 {[%clk 0:02:34]} 16. Qd3 {[%clk 0:02:07]}  Nb4 {[%clk 0:02:29]} 17. Qf3 {[%clk 0:01:58]}  exf4 {[%clk 0:01:48]} 18. a3 {[%clk 0:01:58]}  Nxc2 {[%clk 0:01:41]} 19. Kxc2 {[%clk 0:01:52]}  Nxg3 {[%clk 0:01:39]} 20. Nxg3 {[%clk 0:01:49]} 1-0


[Site "https://www.chess.com"]

[Event "Titled Tuesday Blitz February 07 Late 2023"]
[White "Schekachikhin, Maksim"]
[Black "Gascon Del Nogal, Jose Rafael"]
[WhiteFideId "24177830"]
[BlackFideId "3902463"]
[WhiteElo "2371"]
[BlackElo "2459"]
[Result "0-1"]
[Round "09"]
[TimeControl "180+2"]
[Date "2023.02.07"]
[WhiteClock "0:00:10"]
[BlackClock "0:00:19"]

1. b3 {[%clk 0:02:50]}  e5 {[%clk 0:02:56]} 2. Bb2 {[%clk 0:02:50]}  Nc6 {[%clk 0:02:55]} 3. c4 {[%clk 0:02:50]}  Nf6 {[%clk 0:02:52]} 4. Nf3 {[%clk 0:02:49]}  e4 {[%clk 0:02:46]} 5. Nd4 {[%clk 0:02:49]}  Bc5 {[%clk 0:02:45]} 6. Nf5 {[%clk 0:02:49]}  d5 {[%clk 0:02:35]} 7. Nxg7+ {[%clk 0:02:43]}  Kf8 {[%clk 0:02:35]} 8. cxd5 {[%clk 0:02:42]}  Nxd5 {[%clk 0:01:49]} 9. e3 {[%clk 0:02:24]}  Rg8 {[%clk 0:01:41]} 10. Qc2 {[%clk 0:02:13]}  Qe7 {[%clk 0:01:25]} 11. a3 {[%clk 0:01:49]}  Rxg7 {[%clk 0:01:22]} 12. Bxg7+ {[%clk 0:01:50]}  Kxg7 {[%clk 0:01:22]} 13. Bc4 {[%clk 0:01:50]}  Nf6 {[%clk 0:01:18]} 14. Nc3 {[%clk 0:01:49]}  Bf5 {[%clk 0:01:10]} 15. b4 {[%clk 0:01:49]}  Bd6 {[%clk 0:01:08]} 16. f4 {[%clk 0:01:40]}  a6 {[%clk 0:01:00]} 17. O-O {[%clk 0:01:39]}  h5 {[%clk 0:01:00]} 18. Nd5 {[%clk 0:01:37]}  Nxd5 {[%clk 0:00:59]} 19. Bxd5 {[%clk 0:01:38]}  Nd8 {[%clk 0:00:50]} 20. Rfe1 {[%clk 0:01:25]}  c6 {[%clk 0:00:50]} 21. Bc4 {[%clk 0:01:25]}  Ne6 {[%clk 0:00:50]} 22. d3 {[%clk 0:01:22]}  Nc7 {[%clk 0:00:47]} 23. Rad1 {[%clk 0:01:15]}  Nd5 {[%clk 0:00:43]} 24. Qb2+ {[%clk 0:00:46]}  Qf6 {[%clk 0:00:41]} 25. Qxf6+ {[%clk 0:00:34]}  Kxf6 {[%clk 0:00:42]} 26. dxe4 {[%clk 0:00:34]}  Bxe4 {[%clk 0:00:42]} 27. Rd4 {[%clk 0:00:34]}  Re8 {[%clk 0:00:36]} 28. Kf2 {[%clk 0:00:22]}  Bb8 {[%clk 0:00:35]} 29. Bxd5 {[%clk 0:00:18]}  cxd5 {[%clk 0:00:35]} 30. Rd2 {[%clk 0:00:16]}  Rc8 {[%clk 0:00:33]} 31. Rdd1 {[%clk 0:00:14]}  Ba7 {[%clk 0:00:30]} 32. Rc1 {[%clk 0:00:14]}  Rc4 {[%clk 0:00:30]} 33. Rxc4 {[%clk 0:00:13]}  dxc4 {[%clk 0:00:30]} 34. Rc1 {[%clk 0:00:14]}  b5 {[%clk 0:00:30]} 35. g3 {[%clk 0:00:13]}  Ke6 {[%clk 0:00:25]} 36. h3 {[%clk 0:00:12]}  Bb6 {[%clk 0:00:24]} 37. g4 {[%clk 0:00:12]}  Bd8 {[%clk 0:00:22]} 38. Ke2 {[%clk 0:00:10]}  Bf6 {[%clk 0:00:20]} 39. g5 {[%clk 0:00:11]}  Bg7 {[%clk 0:00:20]} 40. Kd2 {[%clk 0:00:10]}  Bb2 {[%clk 0:00:19]} 0-1


[Site "https://www.chess.com"]

[Event "Titled Tuesday Blitz February 07 Late 2023"]
[White "Mgeladze, Tamaz"]
[Black "Kaplan, Avi Harrison"]
[WhiteFideId "13601202"]
[BlackFideId "30934559"]
[WhiteElo "2388"]
[BlackElo "2146"]
[Result "1-0"]
[Round "09"]
[TimeControl "180+2"]
[Date "2023.02.07"]
[WhiteClock "0:02:01"]
[BlackClock "0:00:03"]

1. c4 {[%clk 0:02:56]}  g6 {[%clk 0:03:00]} 2. Nc3 {[%clk 0:02:56]}  Bg7 {[%clk 0:02:59]} 3. g3 {[%clk 0:02:56]}  Nc6 {[%clk 0:02:48]} 4. Bg2 {[%clk 0:02:56]}  d6 {[%clk 0:02:48]} 5. Nf3 {[%clk 0:02:56]}  e5 {[%clk 0:02:48]} 6. O-O {[%clk 0:02:57]}  f5 {[%clk 0:02:48]} 7. d3 {[%clk 0:02:57]}  Nf6 {[%clk 0:02:47]} 8. Rb1 {[%clk 0:02:58]}  O-O {[%clk 0:02:46]} 9. b4 {[%clk 0:02:58]}  h6 {[%clk 0:02:47]} 10. b5 {[%clk 0:02:58]}  Ne7 {[%clk 0:02:47]} 11. a4 {[%clk 0:02:59]}  g5 {[%clk 0:02:44]} 12. c5 {[%clk 0:02:57]}  f4 {[%clk 0:02:42]} 13. Qb3+ {[%clk 0:02:56]}  Kh8 {[%clk 0:02:41]} 14. cxd6 {[%clk 0:02:56]}  cxd6 {[%clk 0:02:41]} 15. Ba3 {[%clk 0:02:54]}  Bf5 {[%clk 0:02:04]} 16. Nd2 {[%clk 0:02:52]}  Qd7 {[%clk 0:02:03]} 17. Nde4 {[%clk 0:02:45]}  Nc8 {[%clk 0:01:29]} 18. Qb4 {[%clk 0:02:45]}  Rd8 {[%clk 0:01:19]} 19. Nxf6 {[%clk 0:02:39]}  Bxf6 {[%clk 0:01:17]} 20. Nd5 {[%clk 0:02:40]}  Bg7 {[%clk 0:01:17]} 21. Rbc1 {[%clk 0:02:39]}  Ne7 {[%clk 0:01:11]} 22. Nxe7 {[%clk 0:02:30]}  Qxe7 {[%clk 0:01:12]} 23. Rc2 {[%clk 0:02:31]}  Rac8 {[%clk 0:01:11]} 24. Rfc1 {[%clk 0:02:30]}  Rxc2 {[%clk 0:01:10]} 25. Rxc2 {[%clk 0:02:31]}  Qd7 {[%clk 0:01:03]} 26. a5 {[%clk 0:02:28]}  Bf8 {[%clk 0:01:02]} 27. b6 {[%clk 0:02:23]}  axb6 {[%clk 0:00:47]} 28. Qxb6 {[%clk 0:02:24]}  Rc8 {[%clk 0:00:44]} 29. Rxc8 {[%clk 0:02:20]}  Qxc8 {[%clk 0:00:44]} 30. Bxb7 {[%clk 0:02:20]}  Qc2 {[%clk 0:00:37]} 31. Bxd6 {[%clk 0:02:15]}  Bxd6 {[%clk 0:00:05]} 32. Qxd6 {[%clk 0:02:16]}  Bh3 {[%clk 0:00:05]} 33. Qxe5+ {[%clk 0:02:12]}  Kh7 {[%clk 0:00:03]} 34. Be4+ {[%clk 0:02:10]}  Kg8 {[%clk 0:00:03]} 35. Bd5+ {[%clk 0:02:04]}  Kh7 {[%clk 0:00:03]} 36. Qe7+ {[%clk 0:02:03]}  Kh8 {[%clk 0:00:02]} 37. Qf6+ {[%clk 0:02:01]}  Kh7 {[%clk 0:00:02]} 38. Qf7+ {[%clk 0:02:01]}  Kh8 {[%clk 0:00:03]} 39. Qg8# {[%clk 0:02:01]} 1-0


[Site "https://www.chess.com"]

[Event "Titled Tuesday Blitz February 07 Late 2023"]
[White "Petrovic, Aleksa"]
[Black "Leiva, Gianmarco"]
[WhiteFideId "967629"]
[BlackFideId "3804399"]
[WhiteElo "2332"]
[BlackElo "2392"]
[Result "0-1"]
[Round "09"]
[TimeControl "180+2"]
[Date "2023.02.07"]
[WhiteClock "0:00:03"]
[BlackClock "0:00:05"]

1. d4 {[%clk 0:02:59]}  Nf6 {[%clk 0:02:59]} 2. c4 {[%clk 0:02:56]}  e6 {[%clk 0:02:59]} 3. Nf3 {[%clk 0:02:56]}  d5 {[%clk 0:02:59]} 4. Nc3 {[%clk 0:02:55]}  Be7 {[%clk 0:02:55]} 5. Bg5 {[%clk 0:02:54]}  O-O {[%clk 0:02:54]} 6. e3 {[%clk 0:02:53]}  Nbd7 {[%clk 0:02:54]} 7. Qc2 {[%clk 0:02:49]}  c5 {[%clk 0:02:54]} 8. cxd5 {[%clk 0:02:42]}  Nxd5 {[%clk 0:02:44]} 9. Bxe7 {[%clk 0:02:36]}  Nxe7 {[%clk 0:02:45]} 10. dxc5 {[%clk 0:02:36]}  Nxc5 {[%clk 0:02:42]} 11. Rd1 {[%clk 0:02:35]}  Qc7 {[%clk 0:02:32]} 12. Ne4 {[%clk 0:02:22]}  Qa5+ {[%clk 0:02:23]} 13. Qc3 {[%clk 0:02:22]}  Qxc3+ {[%clk 0:02:21]} 14. Nxc3 {[%clk 0:02:23]}  Nc6 {[%clk 0:01:33]} 15. Bb5 {[%clk 0:02:19]}  Ne7 {[%clk 0:00:59]} 16. b4 {[%clk 0:02:12]}  a6 {[%clk 0:00:53]} 17. Be2 {[%clk 0:02:01]}  Nd7 {[%clk 0:00:52]} 18. Rd2 {[%clk 0:01:44]}  Nb6 {[%clk 0:00:52]} 19. Bd1 {[%clk 0:01:35]}  Bd7 {[%clk 0:00:50]} 20. Bb3 {[%clk 0:01:29]}  Rfc8 {[%clk 0:00:49]} 21. Ne4 {[%clk 0:01:16]}  Rc1+ {[%clk 0:00:40]} 22. Rd1 {[%clk 0:01:16]}  Rxd1+ {[%clk 0:00:40]} 23. Kxd1 {[%clk 0:01:17]}  Bc6 {[%clk 0:00:35]} 24. Nc5 {[%clk 0:01:09]}  a5 {[%clk 0:00:30]} 25. bxa5 {[%clk 0:01:06]}  Rxa5 {[%clk 0:00:30]} 26. Nd3 {[%clk 0:01:03]}  Bxf3+ {[%clk 0:00:23]} 27. gxf3 {[%clk 0:01:03]}  Rh5 {[%clk 0:00:24]} 28. Ke2 {[%clk 0:00:59]}  Nc6 {[%clk 0:00:21]} 29. f4 {[%clk 0:00:56]}  Kf8 {[%clk 0:00:20]} 30. Ne1 {[%clk 0:00:49]}  Na5 {[%clk 0:00:18]} 31. Nf3 {[%clk 0:00:44]}  Nxb3 {[%clk 0:00:17]} 32. Rb1 {[%clk 0:00:39]}  Rb5 {[%clk 0:00:10]} 33. Rxb3 {[%clk 0:00:38]}  Rxb3 {[%clk 0:00:11]} 34. axb3 {[%clk 0:00:39]}  Ke7 {[%clk 0:00:10]} 35. Ne5 {[%clk 0:00:39]}  Kf6 {[%clk 0:00:10]} 36. Kd3 {[%clk 0:00:38]}  Ke7 {[%clk 0:00:08]} 37. Kd4 {[%clk 0:00:38]}  f6 {[%clk 0:00:08]} 38. Nd3 {[%clk 0:00:38]}  Kd6 {[%clk 0:00:08]} 39. e4 {[%clk 0:00:35]}  Nd7 {[%clk 0:00:07]} 40. e5+ {[%clk 0:00:35]}  fxe5+ {[%clk 0:00:07]} 41. fxe5+ {[%clk 0:00:36]}  Kc6 {[%clk 0:00:08]} 42. Nf4 {[%clk 0:00:32]}  Nf8 {[%clk 0:00:08]} 43. h4 {[%clk 0:00:31]}  b6 {[%clk 0:00:07]} 44. f3 {[%clk 0:00:30]}  g6 {[%clk 0:00:07]} 45. Nh3 {[%clk 0:00:28]}  h6 {[%clk 0:00:07]} 46. Nf4 {[%clk 0:00:27]}  Kb5 {[%clk 0:00:07]} 47. h5 {[%clk 0:00:26]}  gxh5 {[%clk 0:00:07]} 48. Nxh5 {[%clk 0:00:26]}  Kb4 {[%clk 0:00:07]} 49. f4 {[%clk 0:00:16]}  Kxb3 {[%clk 0:00:07]} 50. Ng7 {[%clk 0:00:07]}  b5 {[%clk 0:00:06]} 51. Nxe6 {[%clk 0:00:02]}  Nxe6+ {[%clk 0:00:06]} 52. Ke4 {[%clk 0:00:03]}  Kc4 {[%clk 0:00:04]} 53. f5 {[%clk 0:00:04]}  Nc5+ {[%clk 0:00:04]} 54. Kf4 {[%clk 0:00:04]}  Kd5 {[%clk 0:00:05]} 55. e6 {[%clk 0:00:03]}  Nxe6+ {[%clk 0:00:05]} 0-1


[Site "https://www.chess.com"]